[Event "NJSK 2026 Jeugd C"]
[Site "Helmond, Netherlands"]
[Date "2026.04.29"]
[Round "6.16"]
[White "De Wit, Jim"]
[Black "Mendelsohn, Saffran"]
[Result "1-0"]
[TimeControl "90min/40moves + 30sec/move"]
[WhiteTitle "-"]
[BlackTitle "-"]
[WhiteFideId "1097326"]
[BlackFideId "40108996"]
[WhiteElo "1749"]
[BlackElo "1767"]

1. e4 {[%clk 01:30:56]} {[%emt 00:00:03]} c5 {[%clk 01:30:38]} {[%emt
00:00:22]} 2. Nf3 {[%clk 01:31:20]} {[%emt 00:00:06]} Nc6 {[%clk 01:31:01]}
{[%emt 00:00:08]} 3. Nc3 {[%clk 01:31:37]} {[%emt 00:00:12]} e5 {[%clk
01:29:46]} {[%emt 00:01:45]} 4. Bc4 {[%clk 01:31:42]} {[%emt 00:00:25]} d6
{[%clk 01:29:21]} {[%emt 00:00:56]} 5. d3 {[%clk 01:31:02]} {[%emt 00:01:10]}
Be7 {[%clk 01:29:16]} {[%emt 00:00:34]} 6. Nd2 {[%clk 01:29:59]} {[%emt
00:01:33]} Nf6 {[%clk 01:19:50]} {[%emt 00:09:56]} 7. Nf1 {[%clk 01:30:12]}
{[%emt 00:00:17]} Be6 {[%clk 01:17:05]} {[%emt 00:03:16]} 8. Ne3 {[%clk
01:29:48]} {[%emt 00:00:53]} O-O {[%clk 01:14:48]} {[%emt 00:02:47]} 9. Ncd5
{[%clk 01:29:37]} {[%emt 00:00:42]} Bxd5 {[%clk 01:14:01]} {[%emt 00:01:17]} 10.
Nxd5 {[%clk 01:29:37]} {[%emt 00:00:30]} Nxd5 {[%clk 01:13:29]} {[%emt
00:01:02]} 11. Bxd5 {[%clk 01:29:54]} {[%emt 00:00:13]} Bg5 {[%clk 01:12:25]}
{[%emt 00:01:33]} 12. O-O {[%clk 01:29:12]} {[%emt 00:01:13]} Rb8 {[%clk
01:09:04]} {[%emt 00:03:52]} 13. c3 {[%clk 01:27:57]} {[%emt 00:01:44]} Bxc1
{[%clk 01:06:55]} {[%emt 00:02:38]} 14. Rxc1 {[%clk 01:28:08]} {[%emt
00:00:19]} Ne7 {[%clk 01:06:38]} {[%emt 00:00:48]} 15. Bb3 {[%clk 01:27:56]}
{[%emt 00:00:41]} b5 {[%clk 01:05:40]} {[%emt 00:01:29]} 16. g3 {[%clk
01:23:37]} {[%emt 00:04:49]} Ng6 {[%clk 00:53:10]} {[%emt 00:12:59]} 17. Bd5
{[%clk 01:21:20]} {[%emt 00:02:48]} Qg5 {[%clk 00:49:20]} {[%emt 00:04:19]} 18.
Kh1 {[%clk 01:18:10]} {[%emt 00:03:40]} Kh8 {[%clk 00:43:50]} {[%emt 00:05:54]}
19. Rc2 {[%clk 01:17:10]} {[%emt 00:01:36]} Qh6 {[%clk 00:36:49]} {[%emt
00:07:31]} 20. Qd2 {[%clk 01:16:02]} {[%emt 00:01:39]} Qh3 {[%clk 00:36:40]}
{[%emt 00:00:37]} 21. Qe2 {[%clk 01:13:49]} {[%emt 00:02:17]} Ne7 {[%clk
00:33:00]} {[%emt 00:04:38]} 22. Bb3 {[%clk 01:13:42]} {[%emt 00:00:36]} f5
{[%clk 00:30:25]} {[%emt 00:03:06]} 23. Be6 {[%clk 01:12:20]} {[%emt 00:01:52]}
Rf6 {[%clk 00:30:23]} {[%emt 00:00:32]} 24. exf5 {[%clk 01:10:30]} {[%emt
00:02:20]} Rbf8 {[%clk 00:25:25]} {[%emt 00:05:28]} 25. g4 {[%clk 01:05:50]}
{[%emt 00:05:10]} Rxe6 {[%clk 00:19:00]} {[%emt 00:06:55]} 26. fxe6 {[%clk
01:04:30]} {[%emt 00:01:49]} Ng6 {[%clk 00:18:54]} {[%emt 00:00:36]} 27. Rg1
{[%clk 00:56:54]} {[%emt 00:08:06]} Nf4 {[%clk 00:18:21]} {[%emt 00:01:03]} 28.
Qe3 {[%clk 00:54:25]} {[%emt 00:02:59]} Qh6 {[%clk 00:16:00]} {[%emt 00:02:51]}
29. e7 {[%clk 00:48:47]} {[%emt 00:06:09]} Re8 {[%clk 00:16:22]} {[%emt
00:00:08]} 30. d4 {[%clk 00:48:56]} {[%emt 00:00:21]} Qg6 {[%clk 00:12:47]}
{[%emt 00:04:02]} 31. dxe5 {[%clk 00:34:42]} {[%emt 00:14:47]} dxe5 {[%clk
00:12:56]} {[%emt 00:00:22]} 32. Rd2 {[%clk 00:30:26]} {[%emt 00:04:45]} Rxe7
{[%clk 00:11:37]} {[%emt 00:01:49]} 33. Rd8+ {[%clk 00:29:18]} {[%emt
00:01:38]} Re8 {[%clk 00:12:05]} {[%emt 00:00:01]} 34. Rxe8+ {[%clk 00:29:05]}
{[%emt 00:00:44]} Qxe8 {[%clk 00:12:34]} 35. Re1 {[%clk 00:28:59]} {[%emt
00:00:35]} Qc6+ {[%clk 00:12:30]} {[%emt 00:00:35]} 36. Qe4 {[%clk 00:27:15]}
{[%emt 00:02:14]} Qxe4+ {[%clk 00:12:22]} {[%emt 00:00:38]} 37. Rxe4 {[%clk
00:27:35]} {[%emt 00:00:09]} Nd3 {[%clk 00:12:43]} {[%emt 00:00:09]} 38. Kg2
{[%clk 00:26:52]} {[%emt 00:01:12]} g5 {[%clk 00:12:24]} {[%emt 00:00:50]} 39.
Re3 {[%clk 00:24:28]} {[%emt 00:02:55]} c4 {[%clk 00:11:55]} {[%emt 00:01:00]}
40. b3 {[%clk 00:23:44]} {[%emt 00:01:13]} Nc1 {[%clk 00:11:21]} {[%emt
00:01:04]} 41. Rxe5 {[%clk 00:20:00]} {[%emt 00:04:14]} Nxa2 {[%clk 00:11:03]}
{[%emt 00:00:48]} 42. Rxb5 {[%clk 00:17:23]} {[%emt 00:03:08]} Nxc3 {[%clk
00:09:55]} {[%emt 00:01:38]} 43. Rb8+ {[%clk 00:16:25]} {[%emt 00:01:27]} Kg7
{[%clk 00:10:22]} {[%emt 00:00:03]} 44. bxc4 {[%clk 00:16:47]} {[%emt
00:00:08]} a5 {[%clk 00:10:34]} {[%emt 00:00:18]} 45. c5 {[%clk 00:16:41]}
{[%emt 00:00:36]} Kg6 {[%clk 00:10:15]} {[%emt 00:00:51]} 46. c6 {[%clk
00:16:48]} {[%emt 00:00:21]} Nd5 {[%clk 00:10:34]} {[%emt 00:00:10]} 47. Rb7
{[%clk 00:16:19]} {[%emt 00:01:00]} a4 {[%clk 00:10:59]} {[%emt 00:00:04]} 48.
c7 {[%clk 00:15:42]} {[%emt 00:01:06]} Ne7 {[%clk 00:10:33]} {[%emt 00:00:57]}
49. Rb8 {[%clk 00:16:00]} {[%emt 00:00:12]} Kf6 {[%clk 00:10:53]} {[%emt
00:00:10]} 50. c8=Q {[%clk 00:16:24]} {[%emt 00:00:07]} Nxc8 {[%clk 00:11:17]}
{[%emt 00:00:05]} 51. Rxc8 {[%clk 00:16:34]} {[%emt 00:00:19]} Ke5 {[%clk
00:11:46]} {[%emt 00:00:02]} 52. Ra8 {[%clk 00:16:55]} {[%emt 00:00:09]} Kf4
{[%clk 00:12:11]} {[%emt 00:00:05]} 53. Rxa4+ {[%clk 00:17:19]} {[%emt
00:00:06]} Ke5 {[%clk 00:12:36]} {[%emt 00:00:06]} 54. h4 {[%clk 00:17:34]}
{[%emt 00:00:14]} gxh4 {[%clk 00:13:00]} {[%emt 00:00:06]} 55. Kh3 {[%clk
00:17:56]} {[%emt 00:00:06]} Kf6 {[%clk 00:13:26]} {[%emt 00:00:05]} 56. Kxh4
{[%clk 00:18:20]} {[%emt 00:00:07]} Kg6 {[%clk 00:13:52]} {[%emt 00:00:04]} 57.
Ra6+ {[%clk 00:18:44]} {[%emt 00:00:06]} Kf7 {[%clk 00:14:15]} {[%emt
00:00:07]} 58. Kh5 {[%emt 00:00:31]} Kg7 {[%clk 00:14:36]} 59. g5 {[%clk
00:19:11]} {[%emt 00:00:12]} h6 {[%clk 00:14:59]} {[%emt 00:00:06]} 60. Ra7+
{[%clk 00:19:24]} {[%emt 00:00:16]} Kg8 {[%clk 00:15:22]} {[%emt 00:00:07]} 61.
Kg6 {[%clk 00:19:30]} {[%emt 00:00:25]} Kh8 {[%clk 00:15:38]} {[%emt 00:00:13]}
62. Ra8# {[%clk 00:19:53]} {[%emt 00:00:07]} 1-0

[Event "NJSK 2026 Jeugd C"]
[Site "Helmond, Netherlands"]
[Date "2026.04.29"]
[Round "6.17"]
[White "Nair, Pranav Prasobh"]
[Black "Brorens, Victor"]
[Result "1-0"]
[TimeControl "90min/40moves + 30sec/move"]
[WhiteTitle "-"]
[BlackTitle "-"]
[WhiteFideId "40109135"]
[BlackFideId "1095307"]
[WhiteElo "1747"]
[BlackElo "1911"]

1. e4 {[%clk 01:30:58]} {[%emt 00:00:02]} e6 {[%clk 01:30:59]} {[%emt
00:00:01]} 2. d4 {[%clk 01:31:20]} {[%emt 00:00:08]} d5 {[%clk 01:31:29]} 3. e5
{[%clk 01:31:43]} {[%emt 00:00:06]} c5 {[%clk 01:31:57]} {[%emt 00:00:02]} 4.
c3 {[%clk 01:32:07]} {[%emt 00:00:06]} Nc6 {[%clk 01:32:25]} {[%emt 00:00:03]}
5. Nf3 {[%clk 01:32:29]} {[%emt 00:00:07]} Bd7 {[%clk 01:32:53]} {[%emt
00:00:01]} 6. a3 {[%clk 01:32:32]} {[%emt 00:00:28]} Qb6 {[%clk 01:33:03]}
{[%emt 00:00:21]} 7. b4 {[%clk 01:32:32]} {[%emt 00:00:29]} cxd4 {[%clk
01:31:18]} {[%emt 00:02:14]} 8. cxd4 {[%clk 01:32:48]} {[%emt 00:00:15]} Nge7
{[%clk 01:31:46]} {[%emt 00:00:02]} 9. Bb2 {[%clk 01:31:47]} {[%emt 00:01:30]}
a6 {[%clk 01:30:51]} {[%emt 00:01:26]} 10. Bd3 {[%clk 01:31:34]} {[%emt
00:00:42]} Ng6 {[%clk 01:30:16]} {[%emt 00:01:06]} 11. g3 {[%clk 01:30:16]}
{[%emt 00:01:47]} f6 {[%clk 01:26:22]} {[%emt 00:04:25]} 12. Nbd2 {[%clk
01:16:12]} {[%emt 00:14:33]} Be7 {[%clk 01:20:35]} {[%emt 00:06:18]} 13. Nb3
{[%clk 01:14:23]} {[%emt 00:02:18]} f5 {[%clk 01:09:44]} {[%emt 00:11:22]} 14.
h4 {[%clk 01:09:10]} {[%emt 00:05:41]} a5 {[%clk 01:02:04]} {[%emt 00:08:11]}
15. b5 {[%clk 01:07:13]} {[%emt 00:02:27]} a4 {[%clk 01:01:51]} {[%emt
00:00:44]} 16. Nc5 {[%clk 01:06:41]} {[%emt 00:01:02]} Qa5+ {[%clk 01:00:34]}
{[%emt 00:01:46]} 17. Kf1 {[%clk 01:05:53]} {[%emt 00:01:18]} Nd8 {[%clk
00:59:42]} {[%emt 00:01:22]} 18. Nxd7 {[%clk 01:05:23]} {[%emt 00:00:59]} Kxd7
{[%clk 01:00:03]} {[%emt 00:00:09]} 19. Rc1 {[%clk 01:02:47]} {[%emt 00:03:07]}
Nf7 {[%clk 00:57:29]} {[%emt 00:03:05]} 20. Kg2 {[%clk 01:01:01]} {[%emt
00:02:15]} Rhc8 {[%clk 00:57:35]} {[%emt 00:00:25]} 21. Qe2 {[%clk 00:59:25]}
{[%emt 00:02:05]} h6 {[%clk 00:52:52]} {[%emt 00:05:13]} 22. Bxf5 {[%clk
00:55:15]} {[%emt 00:04:40]} exf5 {[%clk 00:52:01]} {[%emt 00:01:21]} 23. e6+
{[%clk 00:54:26]} {[%emt 00:01:19]} Ke8 {[%clk 00:52:30]} 24. exf7+ {[%clk
00:54:46]} {[%emt 00:00:09]} Kxf7 {[%clk 00:52:58]} {[%emt 00:00:03]} 25. h5
{[%clk 00:54:31]} {[%emt 00:00:45]} Nf8 {[%clk 00:52:43]} {[%emt 00:00:46]} 26.
Qe5 {[%clk 00:53:32]} {[%emt 00:01:28]} Qd8 {[%clk 00:49:43]} {[%emt 00:03:30]}
27. Qxf5+ {[%clk 00:52:35]} {[%emt 00:01:27]} Kg8 {[%clk 00:48:59]} {[%emt
00:01:15]} 28. Rhe1 {[%clk 00:49:18]} {[%emt 00:03:46]} Bf6 {[%clk 00:48:48]}
{[%emt 00:00:41]} 29. Ne5 {[%clk 00:46:26]} {[%emt 00:03:22]} Rxc1 {[%clk
00:41:06]} {[%emt 00:08:12]} 30. Rxc1 {[%clk 00:45:39]} {[%emt 00:01:16]} Qe8
{[%clk 00:40:37]} {[%emt 00:01:00]} 31. Rc5 {[%clk 00:44:10]} {[%emt 00:01:59]}
Rd8 {[%clk 00:39:51]} {[%emt 00:01:15]} 32. Ng4 {[%clk 00:35:57]} {[%emt
00:08:43]} Qe4+ {[%clk 00:35:58]} {[%emt 00:04:24]} 33. Qxe4 {[%clk 00:35:43]}
{[%emt 00:00:43]} dxe4 {[%clk 00:36:26]} {[%emt 00:00:02]} 34. Nxf6+ {[%clk
00:36:03]} {[%emt 00:00:11]} gxf6 {[%clk 00:36:55]} 35. Rc4 {[%clk 00:33:37]}
{[%emt 00:02:56]} Rd5 {[%clk 00:35:39]} {[%emt 00:01:46]} 36. Rc5 {[%clk
00:33:39]} {[%emt 00:00:27]} Rd7 {[%clk 00:34:12]} {[%emt 00:01:57]} 37. d5
{[%clk 00:30:43]} {[%emt 00:03:27]} Kf7 {[%clk 00:32:44]} {[%emt 00:01:58]} 38.
Bc1 {[%clk 00:29:43]} {[%emt 00:01:29]} Kg7 {[%clk 00:31:50]} {[%emt 00:01:24]}
39. b6 {[%clk 00:27:40]} {[%emt 00:02:33]} f5 {[%clk 00:30:00]} {[%emt
00:02:21]} 40. Rc7 {[%clk 00:27:39]} {[%emt 00:00:31]} Kh7 {[%clk 00:25:39]}
{[%emt 00:04:51]} 41. Bd2 {[%clk 00:27:11]} {[%emt 00:00:58]} Kg7 {[%clk
00:24:16]} {[%emt 00:01:53]} 42. Bb4 {[%clk 00:27:00]} {[%emt 00:00:41]} Rf7
{[%clk 00:24:17]} {[%emt 00:00:29]} 43. Bc3+ {[%clk 00:23:05]} {[%emt
00:04:25]} Kg8 {[%clk 00:24:26]} {[%emt 00:00:20]} 44. Bd2 {[%clk 00:22:24]}
{[%emt 00:01:10]} Kg7 {[%clk 00:22:43]} {[%emt 00:02:14]} 45. Bxh6+ {[%clk
00:22:35]} {[%emt 00:00:19]} Kf6 {[%clk 00:22:59]} {[%emt 00:00:14]} 46. Rxf7+
{[%clk 00:22:35]} {[%emt 00:00:30]} Kxf7 {[%clk 00:23:27]} {[%emt 00:00:03]} 47.
Bxf8 {[%clk 00:22:55]} {[%emt 00:00:09]} Kxf8 {[%clk 00:23:55]} {[%emt
00:00:03]} 48. d6 {[%clk 00:23:14]} {[%emt 00:00:11]} Kf7 {[%clk 00:24:12]}
{[%emt 00:00:12]} 49. h6 {[%clk 00:23:38]} {[%emt 00:00:06]} 1-0

[Event "NJSK 2026 Jeugd C"]
[Site "Helmond, Netherlands"]
[Date "2026.04.29"]
[Round "7.1"]
[White "Botter, Simon"]
[Black "Guillaumond, Matthieu"]
[Result "1/2-1/2"]
[TimeControl "90min/40moves + 30sec/move"]
[WhiteTitle "-"]
[BlackTitle "-"]
[WhiteFideId "40107698"]
[BlackFideId "1097091"]
[WhiteElo "1988"]
[BlackElo "2104"]

1. d4 {[%clk 01:30:58]} {[%emt 00:00:01]} d5 {[%clk 01:27:33]} {[%emt
00:03:27]} 2. c4 {[%clk 01:31:24]} {[%emt 00:00:04]} e6 {[%clk 01:28:00]}
{[%emt 00:00:04]} 3. Nc3 {[%clk 01:31:50]} {[%emt 00:00:03]} Nf6 {[%clk
01:28:27]} {[%emt 00:00:03]} 4. cxd5 {[%clk 01:32:16]} {[%emt 00:00:04]} exd5
{[%clk 01:28:54]} {[%emt 00:00:04]} 5. Bf4 {[%clk 01:32:32]} {[%emt 00:00:13]}
Nbd7 {[%clk 01:26:58]} {[%emt 00:02:26]} 6. e3 {[%clk 01:31:36]} {[%emt
00:01:26]} Bb4 {[%emt 00:06:14]} 7. a3 {[%clk 01:24:18]} {[%emt 00:07:46]}
Bxc3+ {[%clk 01:16:59]} {[%emt 00:04:46]} 8. bxc3 {[%clk 01:24:24]} {[%emt
00:00:25]} O-O {[%clk 01:16:57]} {[%emt 00:00:32]} 9. Bd3 {[%clk 01:23:58]}
{[%emt 00:00:56]} c5 {[%clk 01:14:52]} {[%emt 00:02:36]} 10. Nf3 {[%clk
01:22:31]} {[%emt 00:01:56]} Qa5 {[%clk 01:03:18]} {[%emt 00:12:04]} 11. Qd2
{[%clk 01:17:07]} {[%emt 00:05:56]} Ne4 {[%clk 00:56:09]} {[%emt 00:07:39]} 12.
Bxe4 {[%clk 01:14:35]} {[%emt 00:03:01]} dxe4 {[%clk 00:56:36]} {[%emt
00:00:03]} 13. Ne5 {[%clk 01:11:38]} {[%emt 00:03:27]} Nxe5 {[%clk 00:49:48]}
{[%emt 00:07:19]} 14. Bxe5 {[%clk 01:11:56]} {[%emt 00:00:12]} b6 {[%clk
00:50:04]} {[%emt 00:00:13]} 15. c4 {[%clk 01:05:33]} {[%emt 00:06:53]} Qa4
{[%clk 00:49:52]} {[%emt 00:00:43]} 16. dxc5 {[%clk 01:00:13]} {[%emt
00:05:49]} Qxc4 {[%clk 00:42:46]} {[%emt 00:07:37]} 17. Qd4 {[%clk 00:56:47]}
{[%emt 00:03:55]} Qb5 {[%clk 00:35:41]} {[%emt 00:07:35]} 18. a4 {[%clk
00:41:20]} {[%emt 00:15:57]} Qa5+ {[%clk 00:32:53]} {[%emt 00:03:18]} 19. Kf1
{[%clk 00:37:19]} {[%emt 00:04:31]} Ba6+ {[%clk 00:24:51]} {[%emt 00:08:32]} 20.
Kg1 {[%clk 00:37:41]} {[%emt 00:00:07]} Qxc5 {[%clk 00:17:28]} {[%emt
00:07:54]} 21. Bxg7 {[%clk 00:37:17]} {[%emt 00:00:54]} Rfd8 {[%clk 00:17:48]}
{[%emt 00:00:11]} 22. Qb2 {[%clk 00:35:05]} {[%emt 00:02:41]} Rd6 {[%clk
00:15:16]} {[%emt 00:03:02]} 23. Be5 {[%clk 00:32:44]} {[%emt 00:02:51]} Re6
{[%clk 00:14:14]} {[%emt 00:01:33]} 24. Bf4 {[%clk 00:32:04]} {[%emt 00:01:09]}
Rc8 {[%clk 00:13:31]} {[%emt 00:01:13]} 25. h3 {[%clk 00:31:51]} {[%emt
00:00:41]} Qc3 {[%clk 00:12:02]} {[%emt 00:02:01]} 26. Qxc3 {[%clk 00:30:56]}
{[%emt 00:01:25]} Rxc3 {[%clk 00:12:29]} {[%emt 00:00:03]} 27. Kh2 {[%clk
00:30:29]} {[%emt 00:00:57]} Bd3 {[%clk 00:11:19]} {[%emt 00:01:41]} 28. Rhc1
{[%clk 00:29:39]} {[%emt 00:01:19]} Rec6 {[%clk 00:11:33]} {[%emt 00:00:17]} 29.
Rxc3 {[%clk 00:29:56]} {[%emt 00:00:13]} Rxc3 {[%clk 00:12:02]} 30. Be5 {[%clk
00:30:07]} {[%emt 00:00:18]} Rc2 {[%clk 00:11:58]} {[%emt 00:00:34]} 31. Kg3
{[%clk 00:30:29]} {[%emt 00:00:08]} a6 {[%clk 00:09:35]} {[%emt 00:02:54]} 32.
Bd4 {[%clk 00:28:46]} {[%emt 00:02:12]} Rc6 {[%clk 00:09:26]} {[%emt 00:00:39]}
1/2-1/2

[Event "NJSK 2026 Jeugd C"]
[Site "Helmond, Netherlands"]
[Date "2026.04.29"]
[Round "7.2"]
[White "Teianu, Sabin"]
[Black "Pathak, Raghav"]
[Result "1-0"]
[TimeControl "90min/40moves + 30sec/move"]
[WhiteTitle "-"]
[BlackTitle "-"]
[WhiteFideId "1095846"]
[BlackFideId "1084259"]
[WhiteElo "2131"]
[BlackElo "2091"]

1. d4 {[%clk 01:30:57]} {[%emt 00:00:02]} Nf6 {[%clk 01:30:51]} {[%emt
00:00:10]} 2. c4 {[%clk 01:31:17]} {[%emt 00:00:10]} g6 {[%clk 01:31:19]}
{[%emt 00:00:02]} 3. Nc3 {[%clk 01:31:42]} {[%emt 00:00:06]} Bg7 {[%clk
01:31:47]} {[%emt 00:00:02]} 4. e4 {[%clk 01:32:06]} {[%emt 00:00:05]} d6
{[%clk 01:32:13]} {[%emt 00:00:05]} 5. Nf3 {[%clk 01:32:31]} {[%emt 00:00:05]}
O-O {[%clk 01:32:39]} {[%emt 00:00:04]} 6. Be2 {[%clk 01:32:54]} {[%emt
00:00:06]} e5 {[%clk 01:33:06]} {[%emt 00:00:03]} 7. Be3 {[%clk 01:33:17]}
{[%emt 00:00:08]} Ng4 {[%clk 01:29:10]} {[%emt 00:04:26]} 8. Bg5 {[%clk
01:33:34]} {[%emt 00:00:14]} f6 {[%clk 01:29:37]} {[%emt 00:00:02]} 9. Bc1
{[%clk 01:33:59]} {[%emt 00:00:04]} exd4 {[%clk 01:21:04]} {[%emt 00:09:03]} 10.
Nxd4 {[%clk 01:34:07]} {[%emt 00:00:21]} Ne5 {[%clk 01:21:31]} {[%emt
00:00:03]} 11. Be3 {[%clk 01:21:06]} {[%emt 00:13:31]} Nbc6 {[%clk 01:21:53]}
{[%emt 00:00:08]} 12. Nxc6 {[%clk 01:20:28]} {[%emt 00:01:08]} bxc6 {[%clk
01:19:44]} {[%emt 00:02:40]} 13. f4 {[%clk 01:13:27]} {[%emt 00:07:31]} Nd7
{[%clk 01:17:51]} {[%emt 00:02:23]} 14. Qd2 {[%clk 01:07:03]} {[%emt 00:06:55]}
f5 {[%clk 01:16:48]} {[%emt 00:01:32]} 15. exf5 {[%clk 01:05:55]} {[%emt
00:01:38]} gxf5 {[%clk 01:16:38]} {[%emt 00:00:40]} 16. Bf3 {[%clk 00:59:51]}
{[%emt 00:06:33]} Bb7 {[%clk 01:14:50]} {[%emt 00:02:19]} 17. O-O-O {[%clk
00:49:50]} {[%emt 00:10:31]} a5 {[%clk 01:12:42]} {[%emt 00:02:38]} 18. Rhg1
{[%clk 00:44:23]} {[%emt 00:05:57]} a4 {[%clk 01:12:51]} {[%emt 00:00:21]} 19.
g4 {[%clk 00:30:12]} {[%emt 00:14:40]} Kh8 {[%clk 01:09:13]} {[%emt 00:04:08]}
20. gxf5 {[%clk 00:29:09]} {[%emt 00:01:34]} a3 {[%clk 01:07:51]} {[%emt
00:01:52]} 21. Rxg7 {[%clk 00:25:44]} {[%emt 00:03:54]} Kxg7 {[%clk 01:07:25]}
{[%emt 00:00:57]} 22. Rg1+ {[%clk 00:24:17]} {[%emt 00:01:57]} Kh8 {[%clk
01:07:27]} {[%emt 00:00:26]} 23. Bd4+ {[%clk 00:21:51]} {[%emt 00:02:58]} Nf6
{[%clk 01:07:50]} {[%emt 00:00:07]} 24. Ne4 {[%clk 00:20:35]} {[%emt 00:01:46]}
c5 {[%clk 01:05:11]} {[%emt 00:03:09]} 25. Qg2 {[%clk 00:15:54]} {[%emt
00:05:11]} Qe7 {[%clk 01:04:50]} {[%emt 00:00:50]} 26. Bxf6+ {[%clk 00:15:51]}
{[%emt 00:00:34]} Rxf6 {[%clk 01:05:14]} {[%emt 00:00:06]} 27. Nxf6 {[%clk
00:16:16]} {[%emt 00:00:05]} Qxf6 {[%clk 01:00:24]} {[%emt 00:05:20]} 28. Bxb7
{[%clk 00:16:36]} {[%emt 00:00:09]} Rb8 {[%clk 01:00:14]} {[%emt 00:00:40]} 29.
Bd5 {[%clk 00:01:15]} {[%emt 00:15:52]} h6 {[%clk 01:00:16]} {[%emt 00:00:28]}
30. Be4 {[%clk 00:00:34]} {[%emt 00:01:11]} Qd4 {[%clk 01:00:20]} {[%emt
00:00:26]} 31. b3 {[%clk 00:00:31]} {[%emt 00:00:34]} Qc3+ {[%clk 01:00:08]}
{[%emt 00:00:41]} 32. Kb1 {[%clk 00:00:34]} {[%emt 00:00:28]} Qd4 {[%clk
00:58:58]} {[%emt 00:01:39]} 33. Bd5 {[%clk 00:00:33]} {[%emt 00:00:31]} Re8
{[%clk 00:57:20]} {[%emt 00:02:08]} 34. Be6 {[%clk 00:00:48]} {[%emt 00:00:15]}
Rb8 {[%clk 00:57:25]} {[%emt 00:00:24]} 35. Rc1 {[%clk 00:00:48]} {[%emt
00:00:30]} c6 {[%clk 00:57:43]} {[%emt 00:00:13]} 36. Qc2 {[%clk 00:00:45]}
{[%emt 00:00:33]} Qxf4 {[%clk 00:57:56]} {[%emt 00:00:16]} 37. Qc3+ {[%clk
00:00:50]} {[%emt 00:00:26]} Kh7 {[%emt 00:00:42]} 38. Rg1 {[%clk 00:00:42]}
Qd4 {[%clk 00:58:41]} {[%emt 00:00:11]} 39. Qxd4 {[%clk 00:01:06]} {[%emt
00:00:06]} cxd4 {[%clk 00:59:07]} {[%emt 00:00:03]} 40. f6 {[%clk 00:01:07]}
{[%emt 00:00:30]} Rf8 {[%clk 00:59:31]} {[%emt 00:00:06]} 41. f7 {[%clk
00:01:32]} {[%emt 00:00:05]} d3 {[%clk 00:59:49]} {[%emt 00:00:12]} 42. Rg8
{[%clk 00:01:53]} {[%emt 00:00:09]} d2 {[%clk 01:00:14]} {[%emt 00:00:05]} 43.
Bf5# {[%clk 00:02:17]} {[%emt 00:00:06]} 1-0